fUST/lending_fUST_20260406
["ID","MTS","AMOUNT","RATE_DAILY","PERIOD"]
[419877629,1775458556769,1110.17,0.00034753,120]
[419877630,1775458556993,1110.17,0.00034753,120]
[419877631,1775458557214,1110.17,0.00034753,120]
[419877632,1775458557441,1110.17,0.00034753,120]
[419877633,1775458557674,1110.17,0.00034753,120]
[419877634,1775458557934,1110.17,0.00034753,120]
[419877635,1775458558180,1110.17,0.00034753,120]
[419877636,1775458558398,1110.17,0.00034753,120]
[419877637,1775458558631,1110.17,0.00034753,120]
[419877638,1775458558861,1110.17,0.00034753,120]
[419877639,1775458559083,1110.17,0.00034753,120]
[419877640,1775458559225,247.26661575,0.00034753,120]
[419877641,1775458559317,1110.17,0.00034753,120]
[419877642,1775458559565,1110.17,0.00034753,120]
[419877643,1775458559786,1110.17,0.00034753,120]
[419877644,1775458559999,302.853,0.00034753,120]
[419877645,1775458560029,1110.17,0.00034753,120]
[419877646,1775458560235,1110.17,0.00034753,120]
[419877647,1775458560455,1110.17,0.00034753,120]
[419877648,1775458560683,1110.17,0.00034753,120]
[419877649,1775458561346,1110.17,0.00034753,120]
[419877650,1775458561569,1110.17,0.00034753,120]
[419877651,1775458561792,1110.17,0.00034753,120]
[419877652,1775458562042,1110.17816653,0.00034753,120]
[419877653,1775458577447,1365.38,0.00034753,120]
[419877654,1775458577663,1365.38,0.00034753,120]
[419877655,1775458577887,1365.38,0.00034753,120]
[419877656,1775458578116,1365.38,0.00034753,120]
[419877657,1775458578342,1365.38,0.00034753,120]
[419877658,1775458578557,1365.38,0.00034753,120]
[419877659,1775458578790,1365.38,0.00034753,120]
[419877660,1775458579008,1365.38,0.00034753,120]
[419877661,1775458579229,1365.38,0.00034753,120]
[419877662,1775458579457,1365.38,0.00034753,120]
[419877663,1775458579682,1365.38,0.00034753,120]
[419877664,1775458579904,1365.38,0.00034753,120]
[419877665,1775458580127,1365.38,0.00034753,120]
[419877666,1775458580352,1365.38,0.00034753,120]
[419877667,1775458580585,1365.38,0.00034753,120]
[419877668,1775458580813,1365.38,0.00034753,120]
[419877669,1775458581042,1365.38,0.00034753,120]
[419877670,1775458581262,1365.38,0.00034753,120]
[419877671,1775458581482,1365.38,0.00034753,120]
[419877672,1775458581697,1365.38,0.00034753,120]
[419877673,1775458581924,1365.38,0.00034753,120]
[419877674,1775458582152,1365.38,0.00034753,120]
[419877675,1775458582389,1365.38,0.00034753,120]
[419877676,1775458582632,1365.61607809,0.00034753,120]
[419877677,1775458584630,401.98970566,0.00034753,120]
[419877678,1775458587244,316.49792009,0.00034753,120]
[419877679,1775458590017,500.0,0.00034753,120]
[419877680,1775458590239,500.0,0.00034753,120]
[419877681,1775458590463,500.0,0.00034753,120]
[419877682,1775458590685,569.83709284,0.00034753,120]
[419877683,1775458590826,1068.36,0.00034753,120]
[419877684,1775458590943,1068.36,0.00034753,120]
[419877685,1775458591217,1068.36,0.00034753,120]
[419877686,1775458591377,1068.36,0.00034753,120]
[419877687,1775458591591,1068.36,0.00034753,120]
[419877688,1775458591800,1068.36,0.00034753,120]
[419877689,1775458592021,1068.36,0.00034753,120]
[419877690,1775458592237,1068.36,0.00034753,120]
[419877691,1775458592456,1068.36,0.00034753,120]
[419877692,1775458592677,1068.36,0.00034753,120]
[419877693,1775458593101,1068.36,0.00034753,120]
[419877694,1775458593319,1068.36,0.00034753,120]
[419877695,1775458593545,1068.36,0.00034753,120]
[419877696,1775458593771,1068.36,0.00034753,120]
[419877697,1775458593996,1068.36,0.00034753,120]
[419877698,1775458594218,1068.36,0.00034753,120]
[419877699,1775458594452,1068.36,0.00034753,120]
[419877700,1775458594667,1068.36,0.00034753,120]
[419877701,1775458594886,1068.36,0.00034753,120]
[419877702,1775458595113,1068.36,0.00034753,120]
[419877703,1775458595335,1068.36,0.00034753,120]
[419877704,1775458595587,1068.36,0.00034753,120]
[419877705,1775458595817,1068.36,0.00034753,120]
[419877706,1775458596044,1068.477,0.00034753,120]
[419877707,1775458604151,168.99991187,0.00034753,120]
[419877708,1775458604197,205.7778279,0.00034753,120]
[419877709,1775458604235,287.60312967,0.00034753,120]
[419877710,1775458604271,160.06400157,0.00034753,120]
[419877711,1775458604494,160.06400157,0.00034753,120]
[419877712,1775458604783,160.06400157,0.00034753,120]
[419877713,1775458605024,378.22010373,0.00034753,120]
[419877714,1775458610364,500.0,0.00034753,120]
[419877715,1775458610459,500.0,0.00034753,120]
[419877716,1775458610913,500.0,0.00034753,120]
[419877717,1775458611036,500.0,0.00034753,120]
[419877718,1775458611259,500.0,0.00034753,120]
[419877719,1775458611515,500.0,0.00034753,120]
[419877720,1775458611742,500.0,0.00034753,120]
[419877721,1775458611973,500.0,0.00034753,120]
[419877722,1775458612211,500.0,0.00034753,120]
[419877723,1775458612512,500.0,0.00034753,120]
[419877724,1775458612743,500.0,0.00034753,120]
[419877725,1775458612973,500.0,0.00034753,120]
[419877726,1775458613206,500.0,0.00034753,120]
[419877727,1775458613455,500.0,0.00034753,120]
[419877728,1775458613683,500.0,0.00034753,120]
[419877729,1775458613911,500.0,0.00034753,120]
[419877730,1775458614147,500.0,0.00034753,120]
[419877731,1775458614387,369.03096711,0.00034753,120]
[419877732,1775458645695,500.0,0.00034753,120]
[419877733,1775458662314,500.0,0.00034753,120]
[419877734,1775458662441,500.0,0.00034753,120]
[419877735,1775458662657,500.0,0.00034753,120]
[419877736,1775458662869,500.0,0.00034753,120]
[419877737,1775458663100,500.0,0.00034753,120]
[419877738,1775458663318,500.0,0.00034753,120]
[419877739,1775458663548,500.0,0.00034753,120]
[419877740,1775458663779,500.0,0.00034753,120]
[419877741,1775458664008,500.0,0.00034753,120]
[419877742,1775458664238,500.0,0.00034753,120]
[419877743,1775458664461,500.0,0.00034753,120]
[419877744,1775458664686,500.0,0.00034753,120]
[419877745,1775458664905,521.56632394,0.00034753,120]
[419877746,1775458677490,500.0,0.00021528,120]
[419877747,1775458677702,547.38296125,0.00022689,120]
[419877748,1775458736393,155.53562348,0.00034753,120]
[419877750,1775458791886,152.49546778,0.00034753,120]
[419877751,1775458800953,2516.8,0.00034753,120]
[419877752,1775458804018,300.0,0.00032321,120]
[419877753,1775458808092,254.3358519,0.00034753,120]
[419877754,1775458810583,245.08,0.00034753,120]
[419877755,1775458821839,500.0,0.00034753,120]
[419877756,1775458822066,500.0,0.00034753,120]
[419877757,1775458822383,500.0,0.00034753,120]
[419877758,1775458822718,500.0,0.00034753,120]
[419877759,1775458822927,500.0,0.00034753,120]
[419877760,1775458823040,500.0,0.00034753,120]
[419877761,1775458823264,500.0,0.00034753,120]
[419877762,1775458823484,500.0,0.00034753,120]
[419877763,1775458824093,500.0,0.00034753,120]
[419877764,1775458824334,500.0,0.00034753,120]
[419877765,1775458824551,500.0,0.00034753,120]
[419877766,1775458824772,500.0,0.00034753,120]
[419877767,1775458824987,500.0,0.00034753,120]
[419877768,1775458825206,500.0,0.00034753,120]
[419877769,1775458825427,500.0,0.00034753,120]
[419877770,1775458825641,500.0,0.00034753,120]
[419877771,1775458825889,500.0,0.00034753,120]
[419877772,1775458826105,500.0,0.00034753,120]
[419877773,1775458826327,270.22849254,0.00034753,120]
[419877774,1775458880976,-556.13607784,0.00013699,2]
[419877775,1775458887058,151.40195972,0.00034753,120]
[419877776,1775458900205,949.55277025,0.00032876,120]
[419877777,1775458910320,158.89268659,0.00034753,120]
[419877778,1775458917565,500.0,0.00034753,120]
[419877779,1775458917798,500.0,0.00034753,120]
[419877780,1775458918023,500.0,0.00034753,120]
[419877781,1775458918251,500.0,0.00034753,120]
[419877782,1775458918491,243.93247515,0.00034753,120]
[419877783,1775458925755,172.60421207,0.00034753,120]
[419877784,1775458936464,500.0,0.00034753,120]
[419877785,1775458936717,500.0,0.00034753,120]
[419877786,1775458936752,493.0,0.00032876,120]
[419877787,1775458936947,500.0,0.00034753,120]
[419877788,1775458937274,513.35470465,0.00034753,120]
[419877789,1775458953701,6105.33477397,0.00034753,120]
[419877790,1775459008297,169.67858173,0.00034753,120]
[419877791,1775459070906,157.60332833,0.00034753,120]
[419877792,1775459087187,153.99919343,0.00034753,120]
[419877793,1775459087366,258.33167479,0.00034753,120]
[419877794,1775459163696,500.0,0.00021039,120]
[419877795,1775459163911,500.0,0.00021089,120]
[419877796,1775459164138,344.67108557,0.00022262,120]
[419877797,1775459167225,300.0,0.00032321,120]
[419877798,1775459169498,318.66790827,0.00032321,120]
[419877799,1775459181932,154.23770236,0.00034754,120]
[419877800,1775459253491,200.0,0.00034754,120]
[419877801,1775459253750,200.0,0.00034754,120]
[419877802,1775459253967,200.0,0.00034754,120]
[419877803,1775459254186,200.0,0.00034754,120]
[419877804,1775459254414,200.0,0.00034754,120]
[419877805,1775459254670,200.0,0.00034754,120]
[419877806,1775459254889,305.31813324,0.00034754,120]
[419877809,1775459314720,311.35074952,9.003e-05,2]
[419877810,1775459343484,1057.06444621,0.00034754,120]
[419877811,1775459403130,722.62350037,0.00034754,120]
[419877813,1775459404603,233.29608345,0.00034754,120]
[419877814,1775459405886,1006.43147916,0.00034754,120]
[419877815,1775459412103,156.68378206,0.00034754,120]
[419877817,1775459416179,172.229999,0.0003,120]
[419877818,1775459416906,154.65851127,0.00034754,120]
[419877819,1775459418643,175.67811942,0.0002876,120]
[419877827,1775459433578,-597.62633169,0.00013599,2]
[419877829,1775459433587,-55.16865939,0.00013599,2]
[419877832,1775459433632,-154.33409547,0.00013599,2]
[419877833,1775459433642,-300.0,0.00013698,2]
[419877834,1775459433652,-512.58338184,0.00013698,2]
[419877835,1775459433663,-594.54488708,0.00013698,2]
[419877838,1775459436948,1720.59,0.00032876,120]
[419877871,1775459438828,-92.87173108,0.00013698,2]
[419877873,1775459438838,-500.0,0.00013699,2]
[419877875,1775459438847,-479.51808532,0.00013699,2]
[419877877,1775459438856,-597.62633169,0.00013699,2]
[419877879,1775459438865,-1000.0,0.00013699,2]
[419877881,1775459438875,-251.11932049,0.00017969,2]
[419877883,1775459438884,-191.8107243,0.00019776,2]
[419877886,1775459438894,-4421.24090705,0.00020979,2]
[419877888,1775459438903,-597.62633169,0.00020979,30]
[419877890,1775459438911,-3000.0,0.00021,2]
[419877892,1775459438920,-597.62633169,0.00021,30]
[419877894,1775459438930,-3000.0,0.0002101,2]
[419877896,1775459438938,-3000.0,0.0002102,2]
[419877898,1775459438948,-3000.0,0.0002103,2]
[419877900,1775459438957,-3000.0,0.0002104,2]
[419877902,1775459438966,-3000.0,0.0002105,2]
[419877903,1775459438974,-3000.0,0.0002106,2]
[419877906,1775459438984,-3000.0,0.0002107,2]
[419877907,1775459438992,-3000.0,0.0002108,2]
[419877909,1775459439001,-1101.70121369,0.0002109,2]
[419878273,1775459443997,-1898.29878631,0.0002109,2]
[419878274,1775459444007,-3000.0,0.000211,2]
[419878275,1775459444016,-3000.0,0.0002111,2]
[419878276,1775459444026,-3000.0,0.0002112,2]
[419878277,1775459444035,-3000.0,0.0002113,2]
[419878278,1775459444045,-5337.68282,0.0002114,2]
[419878279,1775459444055,-161.3143201,0.00021692,2]
[419878280,1775459444064,-174.13920505,0.00021841,2]
[419878281,1775459444074,-695.86026339,0.00021841,2]
[419878282,1775459444084,-290.41,0.0002199,10]
[419878283,1775459444093,-242.01,0.0002199,10]
[419878284,1775459444103,-500.0,0.00021999,2]
[419878285,1775459444112,-255.63131308,0.00021999,2]
[419878286,1775459444122,-500.0,0.00021999,2]
[419878288,1775459444132,-500.0,0.00021999,2]
[419878290,1775459444141,-500.0,0.00021999,2]
[419878292,1775459444151,-500.0,0.00021999,2]
[419878293,1775459444160,-500.0,0.00021999,2]
[419878296,1775459444170,-500.0,0.00021999,2]
[419878297,1775459444179,-500.0,0.00021999,2]
[419878298,1775459444189,-500.0,0.00021999,2]
[419878299,1775459444198,-500.0,0.00021999,2]
[419878300,1775459444208,-500.0,0.00021999,2]
[419878301,1775459444218,-500.0,0.00021999,2]
[419878302,1775459444241,-500.0,0.00021999,2]
[419878303,1775459444251,-500.0,0.00021999,2]
[419878304,1775459444262,-500.0,0.00021999,2]
[419878305,1775459444272,-500.0,0.00021999,2]
[419878306,1775459444283,-500.0,0.00021999,2]
[419878307,1775459444293,-500.0,0.00021999,2]
[419878308,1775459444303,-500.0,0.00021999,2]
[419878309,1775459444313,-500.0,0.00021999,2]
[419878310,1775459444322,-500.0,0.00021999,2]
[419878311,1775459444332,-500.0,0.00021999,2]
[419878312,1775459444343,-500.0,0.00021999,2]
[419878313,1775459444353,-500.0,0.00021999,2]
[419878314,1775459444363,-534.02804121,0.00021999,2]
[419878315,1775459444373,-500.0,0.00021999,2]
[419878316,1775459444383,-500.0,0.00021999,2]
[419878317,1775459444393,-157.59580723,0.00022,2]
[419878318,1775459444403,-164.14671834,0.00022,2]
[419878319,1775459444413,-152.0,0.00022,2]
[419878320,1775459444423,-64777.13605278,0.00022,2]
[419878321,1775459444433,-212.77811895,0.00022243,2]
[419878322,1775459444443,-496.31431593,0.00022243,2]
[419878323,1775459444453,-500.07150662,0.00022243,2]
[419878324,1775459444462,-503.13828555,0.00022243,2]
[419878325,1775459444473,-502.79313645,0.00022243,2]
[419878326,1775459444483,-409.91268325,0.00022307,2]
[419878327,1775459444493,-500.0,0.00022307,2]
[419878328,1775459444503,-500.0,0.00022307,2]
[419878330,1775459444513,-514.06727997,0.00022307,2]
[419878332,1775459444523,-175.05776258,0.00022315,2]
[419878335,1775459444533,-500.0,0.00022315,2]
[419878337,1775459444543,-500.0,0.00022315,2]
[419878339,1775459444552,-500.0,0.00022315,2]
[419878341,1775459444562,-500.0,0.00022315,2]
[419878343,1775459444572,-500.0,0.00022315,2]
[419878345,1775459444582,-497.6,0.00022315,2]
[419878347,1775459444591,-454.8264291,0.00022351,2]
[419878349,1775459444602,-151.0257013,0.00022354,2]
[419878351,1775459444612,-455.3790597,0.00022354,2]
[419878353,1775459444622,-314.10508859,0.00022386,2]
[419878355,1775459444632,-500.0,0.00022386,2]
[419878357,1775459444642,-500.0,0.00022386,2]
[419878359,1775459444652,-500.0,0.00022386,2]
[419878361,1775459444662,-500.0,0.00022386,2]
[419878363,1775459444672,-500.0,0.00022386,2]
[419878365,1775459444682,-500.0,0.00022386,2]
[419878367,1775459444691,-500.0,0.00022386,2]
[419878369,1775459444701,-500.0,0.00022386,2]
[419878371,1775459444711,-500.0,0.00022386,2]
[419878373,1775459444721,-500.0,0.00022386,2]
[419878375,1775459444731,-500.0,0.00022386,2]
[419878377,1775459444741,-500.0,0.00022386,2]
[419878379,1775459444751,-500.0,0.00022386,2]
[419878381,1775459444760,-500.0,0.00022386,2]
[419878383,1775459444770,-500.0,0.00022386,2]
[419878385,1775459444779,-500.0,0.00022386,2]
[419878388,1775459444789,-537.15842492,0.00022386,2]
[419878390,1775459444799,-261.71155274,0.00022386,2]
[419878392,1775459444808,-494.03703824,0.00022388,2]
[419878394,1775459444817,-187.78006526,0.00022388,2]
[419878396,1775459444827,-171.11376468,0.00022388,2]
[419878398,1775459444836,-626.1415792,0.00022388,2]
[419878400,1775459444845,-2230.315306,0.00022388,2]
[419878402,1775459444855,-182.75,0.0002258,10]
[419878404,1775459444865,-348.49,0.0002258,10]
[419878406,1775459444875,-151.36745,0.0002259,2]
[419878408,1775459444885,-159.281863,0.0002259,2]
[419878410,1775459444894,-118.29085789,0.0002259,2]
[419878657,1775459447176,-32.70914211,0.0002259,2]
[419878659,1775459447186,-151.0,0.0002259,2]
[419878661,1775459447196,-151.0,0.0002259,2]
[419878663,1775459447206,-151.0,0.0002259,2]
[419878665,1775459447216,-151.0,0.0002259,2]
[419878667,1775459447225,-151.0,0.0002259,2]
[419878669,1775459447235,-151.0,0.0002259,2]
[419878671,1775459447244,-79.39161603,0.0002259,2]
[419878921,1775459532204,500.0,0.00034754,120]
[419878922,1775459532427,500.0,0.00034754,120]
[419878923,1775459532659,500.0,0.00034754,120]
[419878924,1775459532911,500.0,0.00034754,120]
[419878925,1775459533244,500.0,0.00034754,120]
[419878926,1775459533473,500.0,0.00034754,120]
[419878927,1775459533744,500.0,0.00034754,120]
[419878928,1775459533976,500.0,0.00034754,120]
[419878929,1775459534192,500.0,0.00034754,120]
[419878930,1775459534408,500.0,0.00034754,120]
[419878931,1775459534629,500.0,0.00034754,120]
[419878932,1775459534847,500.0,0.00034754,120]
[419878933,1775459535092,500.0,0.00034754,120]
[419878934,1775459535669,500.53247736,0.00034754,120]
[419878935,1775459613742,165.806354,0.00021998,120]
[419878936,1775459640137,1669.6272316,0.00034754,120]
[419878937,1775459692466,304.52788452,0.00034754,120]
[419878938,1775459788399,172.4811881,0.00034754,120]
[419878939,1775459866831,1571.4,0.00032754,120]
[419878940,1775459875753,450.0,0.00032603,120]
[419878941,1775459878029,168.66790826,0.00032603,120]
[419878942,1775459878203,500.0,0.00034754,120]
[419878943,1775459878765,500.0,0.00034754,120]
[419878944,1775459879000,500.0,0.00034754,120]
[419878945,1775459879220,368.16691085,0.00034754,120]
[419878981,1775460631690,-500.0,0.00013699,2]
[419878988,1775460631799,-500.0,0.00013699,2]
[419878990,1775460631809,-300.0,0.00021554,2]
[419878991,1775460631818,-91.0,0.00021554,2]
[419879045,1775460637970,-209.0,0.00021554,2]
[419879047,1775460637979,-1200.0,0.00021554,2]
[419879049,1775460637988,-3716.43139173,0.00021555,2]
[419879051,1775460637997,-3444.60750074,0.00021555,2]
[419879053,1775460638007,-2909.4823676,0.00021668,2]
[419879055,1775460638016,-256.83787609,0.00021987,2]
[419879057,1775460638026,-165.806354,0.00021998,2]
[419879058,1775460638036,-9650.17976158,0.00022,2]
[419879060,1775460638045,-152.0,0.00022,2]
[419879062,1775460638054,-3044.0575979,0.00022387,2]
[419879065,1775460638063,-547.83977222,0.0002259,30]
[419879067,1775460638074,-508.16383376,0.0002259,8]
[419879068,1775460638083,-547.83977222,0.0002259,30]
[419879071,1775460638093,-250.0,0.00022603,4]
[419879072,1775460638102,-200.0,0.00022603,2]
[419879075,1775460638112,-176.48493907,0.00022689,2]
[419879076,1775460638121,-705.23381654,0.00022689,2]
[419879078,1775460638130,-547.83977222,0.0002269,30]
[419879080,1775460638139,-547.83977222,0.00022804,30]
[419879082,1775460638149,-500.0,0.00022889,2]
[419879084,1775460638159,-500.0,0.00022889,2]
[419879086,1775460638168,-500.0,0.00022889,2]
[419879088,1775460638177,-215.14268103,0.0002293,2]
[419879090,1775460638187,-152.0,0.00023,2]
[419879092,1775460638196,-270.83333333,0.00023,2]
[419879094,1775460638205,-644.82715365,0.0002312,2]
[419879096,1775460638215,-201.68,0.00023187,10]
[419879098,1775460638225,-168.06,0.00023187,10]
[419879100,1775460638235,-153.0,0.0002319,3]
[419879102,1775460638244,-153.0,0.0002319,3]
[419879104,1775460638254,-153.0,0.0002319,3]
[419879106,1775460638264,-153.0,0.0002319,3]
[419879108,1775460638273,-153.0,0.0002319,3]
[419879110,1775460638283,-235.8912064,0.0002319,3]
[419879112,1775460638292,-22369.33508291,0.00023197,2]
[419879114,1775460638304,-18060.6835027,0.00023197,2]
[419879117,1775460638315,-3583.73877053,0.00023197,2]
[419879119,1775460638328,-27352.96259105,0.00023197,2]
[419879492,1775460643039,-478.55877297,0.00023197,2]
[419879765,1775460646062,-840.34,0.00023187,10]
[419879766,1775460646072,-1088.76950984,0.00023197,2]
[419879767,1775460646118,-18817.38252349,0.00023197,2]
[419879768,1775460646282,-69774.33475064,0.00023197,2]
[419879769,1775460646353,-12539.03854768,0.00023197,2]
[419879785,1775460696199,1350.0,0.0003,120]
[419879786,1775460726007,189.74891837,0.00034754,120]
[419879787,1775461161902,461.25,0.00034748,120]
[419879788,1775461162301,461.25,0.00034748,120]
[419879789,1775461162707,461.25,0.00034748,120]
[419879790,1775461163130,461.25,0.00034748,120]
[419879792,1775461253662,1479.0,0.00032876,120]
[419879793,1775461592194,4034.51,0.00034748,120]
[419879794,1775461592411,4034.51,0.00034748,120]
[419879795,1775461592666,4034.51,0.00034748,120]
[419879796,1775461592990,4034.51,0.00034748,120]
[419879797,1775461593097,4034.51,0.00034748,120]
[419879798,1775461593321,4034.51,0.00034748,120]
[419879799,1775461593638,4034.51,0.00034748,120]
[419879800,1775461593885,4034.51,0.00034748,120]
[419879801,1775461594114,4034.51,0.00034748,120]
[419879802,1775461594354,4034.51,0.00034748,120]
[419879803,1775461594577,4034.51,0.00034748,120]
[419879804,1775461594799,4034.51,0.00034748,120]
[419879805,1775461595017,4034.51,0.00034748,120]
[419879806,1775461595048,482.7351224,0.0003287,120]
[419879807,1775461595238,4034.51,0.00034748,120]
[419879808,1775461595459,4034.51,0.00034748,120]
[419879809,1775461595693,4034.51,0.00034748,120]
[419879810,1775461595914,4034.51,0.00034748,120]
[419879811,1775461596134,4034.51,0.00034748,120]
[419879812,1775461596354,4034.51,0.00034748,120]
[419879813,1775461596597,4034.51,0.00034748,120]
[419879814,1775461596787,4034.51,0.00034748,120]
[419879815,1775461597010,4034.51,0.00034748,120]
[419879816,1775461597250,4034.51,0.00034748,120]
[419879817,1775461597487,4034.59283754,0.00034748,120]
[419879820,1775461816471,214.755145,0.00034748,120]
[419879890,1775461838179,-6113.10747859,0.00013599,2]
[419879892,1775461838188,-1000.0,0.00013699,2]
[419879893,1775461838198,-166.66666667,0.00021732,2]
[419879895,1775461838207,-79.4886899,0.00021832,2]
[419880506,1775461846229,-135.629291,0.00021832,2]
[419880507,1775461846240,-5000.0,0.00022,2]
[419880508,1775461846249,-164.32234987,0.00022,2]
[419880509,1775461846259,-1376.42026981,0.00022176,6]
[419880510,1775461846268,-500.0,0.00022589,2]
[419880511,1775461846277,-569.31527409,0.0002259,2]
[419880512,1775461846287,-2000.0,0.000226,2]
[419880513,1775461846298,-166.66666667,0.000227,2]
[419880514,1775461846307,-2000.0,0.000228,2]
[419880515,1775461846316,-4379.42080295,0.00022894,2]
[419880516,1775461846326,-505.39116533,0.00022973,2]
[419880517,1775461846335,-500.0,0.00022973,2]
[419880518,1775461846344,-269.55,0.00022985,3]
[419880519,1775461846354,-808.68,0.00022985,3]
[419880520,1775461846363,-303.15386176,0.00022994,2]
[419880521,1775461846372,-500.0,0.00022994,2]
[419880522,1775461846382,-500.0,0.00022994,2]
[419880523,1775461846391,-366.21150979,0.00022994,2]
[419880543,1775461917602,400.0,0.00028,120]
[419880547,1775462059311,173.17994367,0.00034748,120]
[419880548,1775462059854,1104.96,0.00032844,120]
[419880549,1775462207122,200.22764388,0.000327,120]
[419880551,1775462267665,549.224011,0.00034752,120]
[419880552,1775462292820,500.0,0.00034752,120]
[419880553,1775462324132,957.31,0.00032844,120]
[419880554,1775462480923,-1000.0,0.00013699,2]
[419880555,1775462480960,-500.0,0.00013699,2]
[419880556,1775462554641,-1256.98040057,0.00021,2]
[419880557,1775462573299,1000.0,0.0003287,120]
[419880558,1775462583812,-1500.0,0.00021,2]
[419880559,1775462609395,600.0,0.0003287,120]
[419880560,1775462628567,1000.0,0.0003287,120]
[419880561,1775462632569,3960.0,0.00032876,120]
[419880562,1775462674162,675.18,0.00034752,120]
[419880563,1775462674384,675.18,0.00034752,120]
[419880564,1775462674626,675.18,0.00034752,120]
[419880565,1775462674854,675.18,0.00034752,120]
[419880566,1775462675079,675.18,0.00034752,120]
[419880567,1775462675335,675.18,0.00034752,120]
[419880568,1775462675569,675.18,0.00034752,120]
[419880569,1775462675804,675.18,0.00034752,120]
[419880570,1775462676056,675.18,0.00034752,120]
[419880571,1775462676303,675.18,0.00034752,120]
[419880572,1775462676533,675.18,0.00034752,120]
[419880573,1775462676766,675.18,0.00034752,120]
[419880574,1775462676995,675.18,0.00034752,120]
[419880575,1775462677228,675.18,0.00034752,120]
[419880576,1775462677440,675.18,0.00034752,120]
[419880577,1775462677671,675.18,0.00034752,120]
[419880578,1775462677919,675.18,0.00034752,120]
[419880579,1775462678169,675.18,0.00034752,120]
[419880580,1775462678554,675.18,0.00034752,120]
[419880581,1775462678655,675.18,0.00034752,120]
[419880582,1775462678871,675.18,0.00034752,120]
[419880583,1775462679089,675.18,0.00034752,120]
[419880584,1775462679663,675.18,0.00034752,120]
[419880585,1775462679890,675.224448,0.00034752,120]
[419880586,1775462734786,13988.68,0.00034752,120]
[419880598,1775462955989,157.98,0.00032844,120]
[419880924,1775463043538,-1000.0,0.00013699,2]
[419880927,1775463043548,-243.01959943,0.00021,2]
[419880928,1775463043559,-1035.78948051,0.0002101,2]
[419881238,1775463046602,-1964.21051949,0.0002101,2]
[419881240,1775463046612,-360.20712223,0.0002102,2]
[419882125,1775463337378,284.0,0.00030137,120]
[419882126,1775463379575,500.0,0.00030137,120]
[419882127,1775463382632,500.0,0.00030137,120]
[419882128,1775463508519,161.0,0.00029528,120]
[419882131,1775463813381,982.478,0.00032876,120]
[419882208,1775464240765,-512.83708196,0.0001,2]
[419882210,1775464240775,-206.17,0.0001,2]
[419882212,1775464240785,-306.99291806,0.0001,2]
[419882222,1775464240873,-94.03518373,0.0001,2]
[419882224,1775464240883,-1000.0,0.00013699,2]
[419882226,1775464240892,-1387.37825175,0.00014175,2]
[419882228,1775464240902,-1200.0,0.00014455,2]
[419882230,1775464240912,-300.0,0.00014456,2]
[419882232,1775464240922,-300.0,0.00014456,2]